[Event "Late-Titled-Tuesday-Blitz-September-19-2023"]
[Site "Chess.com"]
[Date "2023.09.19"]
[Round "2"]
[White "dedpihto_v_kozhanom_palto"]
[Black "emeli_chess"]
[Result "1-0"]
[WhiteElo "2686"]
[BlackElo "2362"]
[TimeControl "180+1"]
[EndTime "14:16:16 PDT"]
[Termination "dedpihto_v_kozhanom_palto won by checkmate"]

1. c4 {[%clk 0:03:00.9]} 1... e5 {[%clk 0:02:59.4]} 2. Nc3 {[%clk 0:03:01.5]}
2... d6 {[%clk 0:02:59.6]} 3. Nf3 {[%clk 0:03:02.1]} 3... f5 {[%clk 0:02:59.1]}
4. d4 {[%clk 0:03:02.6]} 4... e4 {[%clk 0:02:59.5]} 5. Ng5 {[%clk 0:03:03.2]}
5... Nf6 {[%clk 0:02:52.6]} 6. h4 {[%clk 0:03:03.4]} 6... c6 {[%clk 0:02:49.8]}
7. e3 {[%clk 0:03:03.4]} 7... Be7 {[%clk 0:02:48.8]} 8. Nh3 {[%clk 0:02:57.2]}
8... Na6 {[%clk 0:02:46.5]} 9. Nf4 {[%clk 0:02:57.2]} 9... Nc7 {[%clk
0:02:46.1]} 10. d5 {[%clk 0:02:57.4]} 10... O-O {[%clk 0:02:40.4]} 11. h5 {[%clk
0:02:55.5]} 11... Bd7 {[%clk 0:02:37.7]} 12. b3 {[%clk 0:02:54.4]} 12... Qe8
{[%clk 0:02:29.8]} 13. Bb2 {[%clk 0:02:53.1]} 13... Qf7 {[%clk 0:02:29.5]} 14.
Be2 {[%clk 0:02:45.4]} 14... cxd5 {[%clk 0:02:27.2]} 15. cxd5 {[%clk 0:02:45.3]}
15... b5 {[%clk 0:02:24.1]} 16. Rc1 {[%clk 0:02:36.7]} 16... Rac8 {[%clk
0:02:03.2]} 17. h6 {[%clk 0:02:36.7]} 17... g5 {[%clk 0:01:57.8]} 18. Ne6 {[%clk
0:02:37]} 18... Nxe6 {[%clk 0:01:54.7]} 19. dxe6 {[%clk 0:02:37.9]} 19... Qxe6
{[%clk 0:01:52.7]} 20. Nxb5 {[%clk 0:02:38.1]} 20... Bxb5 {[%clk 0:01:35.9]} 21.
Bxb5 {[%clk 0:02:37.6]} 21... d5 {[%clk 0:01:33]} 22. Qd4 {[%clk 0:02:02.6]}
22... Rxc1+ {[%clk 0:01:31.8]} 23. Bxc1 {[%clk 0:02:03.5]} 23... Qb6 {[%clk
0:01:16.3]} 24. Qxb6 {[%clk 0:01:54]} 24... Bb4+ {[%clk 0:01:09.1]} 25. Ke2
{[%clk 0:01:42.4]} 25... axb6 {[%clk 0:01:08.9]} 26. Bb2 {[%clk 0:01:43]} 26...
Kf7 {[%clk 0:00:53.8]} 27. Rc1 {[%clk 0:01:42.6]} 27... Bc5 {[%clk 0:00:49.4]}
28. a3 {[%clk 0:01:27.9]} 28... Ng4 {[%clk 0:00:46.8]} 29. b4 {[%clk 0:01:26.9]}
29... Bd6 {[%clk 0:00:42.1]} 30. Bg7 {[%clk 0:01:12.4]} 30... Ra8 {[%clk
0:00:35.3]} 31. Bc6 {[%clk 0:01:02.9]} 31... Rxa3 {[%clk 0:00:32.8]} 32. Bxd5+
{[%clk 0:01:03.6]} 32... Kg6 {[%clk 0:00:28.1]} 33. Rc6 {[%clk 0:01:03.3]} 33...
f4 {[%clk 0:00:20.3]} 34. Rxd6+ {[%clk 0:01:02.3]} 34... Kh5 {[%clk 0:00:20.7]}
35. g3 {[%clk 0:00:57.8]} 35... f3+ {[%clk 0:00:14.8]} 36. Ke1 {[%clk
0:00:56.4]} 36... Rd3 {[%clk 0:00:10.7]} 37. Bf7# {[%clk 0:00:56.1]} 1-0

[Event "Late-Titled-Tuesday-Blitz-September-19-2023"]
[Site "Chess.com"]
[Date "2023.09.19"]
[Round "2"]
[White "ritanovikova"]
[Black "chessdjw"]
[Result "0-1"]
[WhiteElo "2137"]
[BlackElo "2649"]
[TimeControl "180+1"]
[EndTime "14:16:17 PDT"]
[Termination "chessdjw won by checkmate"]

1. d4 {[%clk 0:03:00]} 1... Nf6 {[%clk 0:02:59.4]} 2. Bf4 {[%clk 0:02:57.6]}
2... b6 {[%clk 0:02:58.8]} 3. Nd2 {[%clk 0:02:54.5]} 3... Bb7 {[%clk 0:02:59.1]}
4. c3 {[%clk 0:02:52.6]} 4... d6 {[%clk 0:02:58.8]} 5. Ngf3 {[%clk 0:02:52.3]}
5... Nh5 {[%clk 0:02:54]} 6. Be3 {[%clk 0:02:49.8]} 6... Nd7 {[%clk 0:02:44.1]}
7. g4 {[%clk 0:02:39.1]} 7... Nhf6 {[%clk 0:02:43.4]} 8. h3 {[%clk 0:02:36.2]}
8... h6 {[%clk 0:02:28]} 9. Bg2 {[%clk 0:02:31.3]} 9... Nd5 {[%clk 0:02:27.4]}
10. Nf1 {[%clk 0:02:24.8]} 10... Nxe3 {[%clk 0:02:25.2]} 11. Nxe3 {[%clk
0:02:24.6]} 11... e6 {[%clk 0:02:24]} 12. O-O {[%clk 0:02:24.7]} 12... Be7
{[%clk 0:02:23.8]} 13. Re1 {[%clk 0:02:21.9]} 13... O-O {[%clk 0:02:18.2]} 14.
Nf1 {[%clk 0:02:21.4]} 14... d5 {[%clk 0:01:59.2]} 15. Ng3 {[%clk 0:02:18.5]}
15... Bd6 {[%clk 0:01:59.2]} 16. Nf1 {[%clk 0:02:08.2]} 16... c5 {[%clk
0:01:58.6]} 17. e3 {[%clk 0:02:07.2]} 17... f5 {[%clk 0:01:42.6]} 18. N3d2
{[%clk 0:01:54.7]} 18... Qf6 {[%clk 0:01:34.4]} 19. f4 {[%clk 0:01:40.8]} 19...
g5 {[%clk 0:01:34]} 20. gxf5 {[%clk 0:01:35]} 20... Qxf5 {[%clk 0:00:53.1]} 21.
fxg5 {[%clk 0:01:12.9]} 21... Qxg5 {[%clk 0:00:45.2]} 22. Qg4 {[%clk 0:01:10.3]}
22... Qxg4 {[%clk 0:00:40]} 23. hxg4 {[%clk 0:01:11]} 23... Nf6 {[%clk
0:00:39.6]} 24. Bf3 {[%clk 0:01:00.3]} 24... Kh7 {[%clk 0:00:35]} 25. c4 {[%clk
0:00:43.3]} 25... Nxg4 {[%clk 0:00:30.1]} 26. Bxg4 {[%clk 0:00:40.7]} 26... Rg8
{[%clk 0:00:30.3]} 27. Nh2 {[%clk 0:00:36.6]} 27... Bxh2+ {[%clk 0:00:22.2]} 28.
Kxh2 {[%clk 0:00:35]} 28... Rxg4 {[%clk 0:00:22.8]} 29. cxd5 {[%clk 0:00:33.8]}
29... Rag8 {[%clk 0:00:20.8]} 30. Rg1 {[%clk 0:00:30.2]} 30... Rh4# {[%clk
0:00:20.6]} 0-1

[Event "Late-Titled-Tuesday-Blitz-September-19-2023"]
[Site "Chess.com"]
[Date "2023.09.19"]
[Round "2"]
[White "Oleksandr_Bortnyk"]
[Black "IMRosen"]
[Result "1-0"]
[WhiteElo "3008"]
[BlackElo "2594"]
[TimeControl "180+1"]
[EndTime "14:16:20 PDT"]
[Termination "Oleksandr_Bortnyk won on time"]

1. d4 {[%clk 0:03:00.9]} 1... Nf6 {[%clk 0:02:56.7]} 2. Nc3 {[%clk 0:03:01.8]}
2... d5 {[%clk 0:02:53.7]} 3. Bf4 {[%clk 0:03:02.5]} 3... c5 {[%clk 0:02:53.6]}
4. e4 {[%clk 0:03:02.9]} 4... Nxe4 {[%clk 0:02:53.9]} 5. Nxe4 {[%clk 0:03:02.9]}
5... dxe4 {[%clk 0:02:54.3]} 6. dxc5 {[%clk 0:03:03.5]} 6... Nd7 {[%clk
0:02:54.5]} 7. b4 {[%clk 0:03:02.5]} 7... e5 {[%clk 0:02:51.9]} 8. Bg3 {[%clk
0:03:02]} 8... Be7 {[%clk 0:02:46.4]} 9. Bc4 {[%clk 0:03:02.3]} 9... O-O {[%clk
0:02:46.6]} 10. Ne2 {[%clk 0:03:02.2]} 10... Kh8 {[%clk 0:02:47.2]} 11. O-O
{[%clk 0:02:58.4]} 11... f5 {[%clk 0:02:47.1]} 12. f4 {[%clk 0:02:58]} 12... a5
{[%clk 0:02:42.3]} 13. a3 {[%clk 0:02:57.7]} 13... Bf6 {[%clk 0:02:26.4]} 14. c3
{[%clk 0:02:58.1]} 14... Qc7 {[%clk 0:02:11]} 15. Be6 {[%clk 0:02:55.4]} 15...
Nxc5 {[%clk 0:01:34.2]} 16. Bxc8 {[%clk 0:02:55]} 16... Raxc8 {[%clk 0:01:34.4]}
17. bxc5 {[%clk 0:02:54.9]} 17... Qxc5+ {[%clk 0:01:35.3]} 18. Kh1 {[%clk
0:02:55.4]} 18... Rfd8 {[%clk 0:01:27.3]} 19. Qb3 {[%clk 0:02:55.3]} 19... exf4
{[%clk 0:01:05.1]} 20. Bxf4 {[%clk 0:02:56.2]} 20... g5 {[%clk 0:00:55.5]} 21.
Bg3 {[%clk 0:02:55.6]} 21... f4 {[%clk 0:00:55.9]} 22. Qxb7 {[%clk 0:02:46.2]}
22... Rc7 {[%clk 0:00:45.3]} 23. Qxe4 {[%clk 0:02:46]} 23... Re7 {[%clk
0:00:38.1]} 24. Qc2 {[%clk 0:02:46.1]} 24... Qe5 {[%clk 0:00:23.4]} 25. Nd4
{[%clk 0:02:40.7]} 25... Rc8 {[%clk 0:00:12.8]} 26. Nf3 {[%clk 0:02:36.8]} 26...
Qxc3 {[%clk 0:00:11.8]} 27. Qxc3 {[%clk 0:02:37.3]} 27... Bxc3 {[%clk
0:00:12.7]} 28. Bf2 {[%clk 0:02:35.8]} 28... Bxa1 {[%clk 0:00:12.5]} 29. Rxa1
{[%clk 0:02:36.7]} 29... g4 {[%clk 0:00:12.4]} 30. Bd4+ {[%clk 0:02:33.7]} 30...
Kg8 {[%clk 0:00:12.2]} 31. Ne5 {[%clk 0:02:34.6]} 31... Rc2 {[%clk 0:00:08.8]}
32. Nxg4 {[%clk 0:02:33]} 32... Ree2 {[%clk 0:00:04.7]} 33. Rf1 {[%clk
0:02:15.3]} 33... Rxg2 {[%clk 0:00:04.6]} 34. Rxf4 {[%clk 0:02:11.8]} 34... h5
{[%clk 0:00:05]} 35. Nf6+ {[%clk 0:02:02.3]} 35... Kf7 {[%clk 0:00:03.1]} 36.
Nxh5+ {[%clk 0:01:54.6]} 36... Ke6 {[%clk 0:00:03.2]} 37. Rh4 {[%clk 0:01:43.7]}
37... Rgd2 {[%clk 0:00:02.8]} 38. Bg1 {[%clk 0:01:40]} 38... Ra2 {[%clk
0:00:02.8]} 39. a4 {[%clk 0:01:38.2]} 39... Rd1 {[%clk 0:00:02.8]} 40. Rg4
{[%clk 0:01:36.5]} 40... Kf5 {[%clk 0:00:03.1]} 41. h3 {[%clk 0:01:35.8]} 41...
Rd3 {[%clk 0:00:03.3]} 42. Ng3+ {[%clk 0:01:35.7]} 42... Kf6 {[%clk 0:00:03.3]}
43. Ne4+ {[%clk 0:01:34.3]} 43... Kf7 {[%clk 0:00:03]} 44. Rf4+ {[%clk
0:01:25.9]} 44... Kg7 {[%clk 0:00:02.9]} 45. Rg4+ {[%clk 0:01:21.9]} 45... Kf7
{[%clk 0:00:03.1]} 46. Nf2 {[%clk 0:01:22.8]} 46... Rda3 {[%clk 0:00:02.1]} 47.
h4 {[%clk 0:01:20]} 47... Rxa4 {[%clk 0:00:02.4]} 48. Ne4 {[%clk 0:01:20.7]}
48... Rd4 {[%clk 0:00:01.7]} 49. Bxd4 {[%clk 0:01:20.8]} 49... Ra1+ {[%clk
0:00:01.3]} 50. Bxa1 {[%clk 0:01:20.9]} 1-0

[Event "Late-Titled-Tuesday-Blitz-September-19-2023"]
[Site "Chess.com"]
[Date "2023.09.19"]
[Round "2"]
[White "Arystanner"]
[Black "Dr_crypt"]
[Result "1-0"]
[WhiteElo "2786"]
[BlackElo "2442"]
[TimeControl "180+1"]
[EndTime "14:16:26 PDT"]
[Termination "Arystanner won by resignation"]

1. d4 {[%clk 0:03:00.9]} 1... Nf6 {[%clk 0:02:59.8]} 2. c4 {[%clk 0:03:01.4]}
2... e6 {[%clk 0:03:00.1]} 3. Nf3 {[%clk 0:03:00.8]} 3... Bb4+ {[%clk 0:02:59]}
4. Bd2 {[%clk 0:03:00]} 4... Qe7 {[%clk 0:02:54.8]} 5. g3 {[%clk 0:02:59.7]}
5... Nc6 {[%clk 0:02:53]} 6. Bg2 {[%clk 0:02:59.1]} 6... Bxd2+ {[%clk
0:02:49.6]} 7. Nbxd2 {[%clk 0:02:53.1]} 7... O-O {[%clk 0:02:45.4]} 8. O-O
{[%clk 0:02:52.8]} 8... d6 {[%clk 0:02:45.5]} 9. e4 {[%clk 0:02:52.8]} 9... e5
{[%clk 0:02:45.9]} 10. d5 {[%clk 0:02:53.2]} 10... Nb8 {[%clk 0:02:45.7]} 11.
Rc1 {[%clk 0:02:50.7]} 11... a5 {[%clk 0:02:42.7]} 12. c5 {[%clk 0:02:44.8]}
12... dxc5 {[%clk 0:02:41.7]} 13. Nc4 {[%clk 0:02:45]} 13... Nbd7 {[%clk
0:02:41.9]} 14. d6 {[%clk 0:02:45.5]} 14... cxd6 {[%clk 0:02:40.9]} 15. Nxd6
{[%clk 0:02:46.4]} 15... b6 {[%clk 0:02:39.2]} 16. Nf5 {[%clk 0:02:32.8]} 16...
Qe6 {[%clk 0:02:36.5]} 17. Ng5 {[%clk 0:02:27.2]} 17... Qxa2 {[%clk 0:02:34.9]}
18. b3 {[%clk 0:02:05.6]} 18... Ba6 {[%clk 0:02:29.4]} 19. Re1 {[%clk
0:02:02.9]} 19... Rad8 {[%clk 0:02:28.5]} 20. Qd6 {[%clk 0:01:58.6]} 20... Qxb3
{[%clk 0:02:20.7]} 21. Re3 {[%clk 0:01:50.9]} 21... Qb2 {[%clk 0:02:12.1]} 22.
Rd1 {[%clk 0:01:51.1]} 22... Be2 {[%clk 0:01:54.5]} 23. Re1 {[%clk 0:01:40.4]}
23... Bc4 {[%clk 0:01:50.4]} 24. h4 {[%clk 0:01:35.7]} 24... g6 {[%clk
0:01:36.9]} 25. Ne7+ {[%clk 0:01:33.9]} 25... Kg7 {[%clk 0:01:36]} 26. Rf3
{[%clk 0:01:32.9]} 26... Qd4 {[%clk 0:01:33.3]} 27. Qc7 {[%clk 0:01:30.4]} 27...
Rc8 {[%clk 0:01:21.6]} 28. Qa7 {[%clk 0:01:23.3]} 28... Rce8 {[%clk 0:01:18.1]}
29. Nd5 {[%clk 0:01:12.8]} 29... Bxd5 {[%clk 0:01:11.3]} 30. exd5 {[%clk
0:01:13.2]} 30... e4 {[%clk 0:01:11.5]} 31. Rxf6 {[%clk 0:00:59.8]} 31... Nxf6
{[%clk 0:01:09.6]} 32. Ne6+ {[%clk 0:01:00.2]} 32... Kg8 {[%clk 0:01:03]} 33.
Nxd4 {[%clk 0:00:59.6]} 33... cxd4 {[%clk 0:00:51.6]} 34. Qxb6 {[%clk
0:00:59.4]} 34... Nxd5 {[%clk 0:00:49.6]} 35. Qxd4 {[%clk 0:00:59.6]} 35... Nb4
{[%clk 0:00:49.5]} 36. Rxe4 {[%clk 0:00:57.8]} 36... Rd8 {[%clk 0:00:46.4]} 37.
Qa7 {[%clk 0:00:56.5]} 37... Nc6 {[%clk 0:00:45.9]} 38. Qa6 {[%clk 0:00:55.1]}
38... Rd6 {[%clk 0:00:45.4]} 39. Rf4 {[%clk 0:00:52.2]} 39... Rd1+ {[%clk
0:00:45.3]} 40. Kh2 {[%clk 0:00:52.2]} 40... Ne5 {[%clk 0:00:45.1]} 41. Qxa5
{[%clk 0:00:51.9]} 41... Nd3 {[%clk 0:00:45.6]} 42. Rd4 {[%clk 0:00:46.3]} 42...
Nxf2 {[%clk 0:00:45.6]} 43. Rxd1 {[%clk 0:00:46.5]} 43... Nxd1 {[%clk
0:00:46.5]} 44. Qd2 {[%clk 0:00:47.1]} 1-0

[Event "Late-Titled-Tuesday-Blitz-September-19-2023"]
[Site "Chess.com"]
[Date "2023.09.19"]
[Round "2"]
[White "Chemim21"]
[Black "Emp3rador"]
[Result "0-1"]
[WhiteElo "2247"]
[BlackElo "2482"]
[TimeControl "180+1"]
[EndTime "14:16:27 PDT"]
[Termination "Emp3rador won on time"]

1. d4 {[%clk 0:03:00.9]} 1... d5 {[%clk 0:02:44.4]} 2. Nf3 {[%clk 0:02:59.6]}
2... Nf6 {[%clk 0:02:44]} 3. Bf4 {[%clk 0:02:59.5]} 3... c6 {[%clk 0:02:40.9]}
4. e3 {[%clk 0:02:59.6]} 4... Bf5 {[%clk 0:02:35.5]} 5. Nbd2 {[%clk 0:02:55.9]}
5... e6 {[%clk 0:02:30.8]} 6. a3 {[%clk 0:02:53.4]} 6... Bd6 {[%clk 0:02:27.3]}
7. Bg3 {[%clk 0:02:49.6]} 7... Bxg3 {[%clk 0:02:21.3]} 8. hxg3 {[%clk
0:02:49.1]} 8... Nbd7 {[%clk 0:02:20.7]} 9. c4 {[%clk 0:02:46.6]} 9... h6 {[%clk
0:01:34.9]} 10. Qb3 {[%clk 0:02:29]} 10... Qb6 {[%clk 0:01:27.4]} 11. c5 {[%clk
0:02:27.8]} 11... Qc7 {[%clk 0:01:24.9]} 12. Qc3 {[%clk 0:02:19.6]} 12... b6
{[%clk 0:01:22]} 13. b4 {[%clk 0:02:19]} 13... a5 {[%clk 0:01:15.6]} 14. Rc1
{[%clk 0:01:56.9]} 14... axb4 {[%clk 0:01:13.3]} 15. axb4 {[%clk 0:01:55]} 15...
b5 {[%clk 0:01:12]} 16. Be2 {[%clk 0:01:54.4]} 16... O-O {[%clk 0:01:08.6]} 17.
O-O {[%clk 0:01:53.4]} 17... Ra2 {[%clk 0:01:06.1]} 18. Bd3 {[%clk 0:01:29]}
18... Bxd3 {[%clk 0:01:03.6]} 19. Qxd3 {[%clk 0:01:29.3]} 19... Rfa8 {[%clk
0:01:03.6]} 20. Rc3 {[%clk 0:01:04.3]} 20... Ra1 {[%clk 0:01:01.4]} 21. Nb3
{[%clk 0:00:49.4]} 21... Rxf1+ {[%clk 0:00:59.7]} 22. Qxf1 {[%clk 0:00:47.7]}
22... Ne4 {[%clk 0:00:54.6]} 23. Rc2 {[%clk 0:00:41.7]} 23... Ra4 {[%clk
0:00:44.1]} 24. Qe1 {[%clk 0:00:36.2]} 24... Nb8 {[%clk 0:00:38.8]} 25. Na5
{[%clk 0:00:35.9]} 25... Na6 {[%clk 0:00:37.6]} 26. Rb2 {[%clk 0:00:09.1]} 26...
Nxb4 {[%clk 0:00:38.5]} 27. Rxb4 {[%clk 0:00:06]} 27... Qxa5 {[%clk 0:00:38.1]}
28. Rb1 {[%clk 0:00:02.9]} 28... Qxe1+ {[%clk 0:00:37.3]} 0-1

[Event "Late-Titled-Tuesday-Blitz-September-19-2023"]
[Site "Chess.com"]
[Date "2023.09.19"]
[Round "2"]
[White "rookoco"]
[Black "SandwichOSaumon"]
[Result "0-1"]
[WhiteElo "2708"]
[BlackElo "2532"]
[TimeControl "180+1"]
[EndTime "14:16:28 PDT"]
[Termination "SandwichOSaumon won by resignation"]

1. e4 {[%clk 0:03:00.9]} 1... e6 {[%clk 0:02:57.3]} 2. d4 {[%clk 0:02:50.7]}
2... d5 {[%clk 0:02:57.6]} 3. Nd2 {[%clk 0:02:49.8]} 3... Nf6 {[%clk 0:02:56]}
4. e5 {[%clk 0:02:39.8]} 4... Nfd7 {[%clk 0:02:56.4]} 5. c3 {[%clk 0:02:35.9]}
5... c5 {[%clk 0:02:57.3]} 6. Bd3 {[%clk 0:02:26.4]} 6... Nc6 {[%clk 0:02:58.2]}
7. Ne2 {[%clk 0:02:25.1]} 7... cxd4 {[%clk 0:02:57.3]} 8. cxd4 {[%clk
0:02:24.7]} 8... f6 {[%clk 0:02:57.9]} 9. exf6 {[%clk 0:02:23.9]} 9... Nxf6
{[%clk 0:02:58.8]} 10. Nf3 {[%clk 0:02:24.2]} 10... Bd6 {[%clk 0:02:58.9]} 11.
O-O {[%clk 0:02:23.2]} 11... Qc7 {[%clk 0:02:58.3]} 12. Bg5 {[%clk 0:02:18.3]}
12... O-O {[%clk 0:02:58.4]} 13. Rc1 {[%clk 0:02:16.8]} 13... Bd7 {[%clk
0:02:56.6]} 14. Bh4 {[%clk 0:02:14.8]} 14... a6 {[%clk 0:02:25.7]} 15. Bg3
{[%clk 0:02:11.5]} 15... Rae8 {[%clk 0:02:26.3]} 16. Re1 {[%clk 0:02:10.7]}
16... Qb8 {[%clk 0:02:12.3]} 17. Bxd6 {[%clk 0:02:06.9]} 17... Qxd6 {[%clk
0:02:13.2]} 18. Ng3 {[%clk 0:02:06.4]} 18... e5 {[%clk 0:02:09.7]} 19. Rxc6
{[%clk 0:01:12.5]} 19... Qxc6 {[%clk 0:02:02.4]} 20. dxe5 {[%clk 0:01:12.2]}
20... Ng4 {[%clk 0:01:44.3]} 21. h3 {[%clk 0:01:11.8]} 21... Nh6 {[%clk
0:01:44]} 22. Nd4 {[%clk 0:01:07.8]} 22... Qb6 {[%clk 0:01:40.6]} 23. e6 {[%clk
0:01:07.4]} 23... Bxe6 {[%clk 0:01:28]} 24. Bc2 {[%clk 0:01:01.5]} 24... Bf7
{[%clk 0:01:20.7]} 25. Rxe8 {[%clk 0:00:55.3]} 25... Rxe8 {[%clk 0:01:21.6]} 26.
Bb3 {[%clk 0:00:55.4]} 26... Kh8 {[%clk 0:01:11.2]} 27. Qd3 {[%clk 0:00:49.6]}
27... Bg6 {[%clk 0:01:01.3]} 28. Qc3 {[%clk 0:00:49.3]} 28... Qd6 {[%clk
0:00:53.3]} 29. Qa5 {[%clk 0:00:19.7]} 29... Bf7 {[%clk 0:00:46.9]} 30. Qc3
{[%clk 0:00:16.5]} 30... Qf6 {[%clk 0:00:44.5]} 31. Qc5 {[%clk 0:00:14.6]} 31...
b6 {[%clk 0:00:38.8]} 32. Qc7 {[%clk 0:00:12.2]} 32... Qxd4 {[%clk 0:00:35.4]}
0-1

[Event "Late-Titled-Tuesday-Blitz-September-19-2023"]
[Site "Chess.com"]
[Date "2023.09.19"]
[Round "2"]
[White "GreatOwl02"]
[Black "AndreiITrifan"]
[Result "1-0"]
[WhiteElo "2452"]
[BlackElo "2663"]
[TimeControl "180+1"]
[EndTime "14:16:33 PDT"]
[Termination "GreatOwl02 won on time"]

1. d4 {[%clk 0:02:59.4]} 1... Nf6 {[%clk 0:02:27.2]} 2. Nf3 {[%clk 0:02:58.2]}
2... e6 {[%clk 0:02:27.4]} 3. Bg5 {[%clk 0:02:57.5]} 3... d5 {[%clk 0:02:24]} 4.
e3 {[%clk 0:02:55.4]} 4... Be7 {[%clk 0:02:22]} 5. Bd3 {[%clk 0:02:50.7]} 5...
O-O {[%clk 0:02:15.5]} 6. Nbd2 {[%clk 0:02:50.1]} 6... Nbd7 {[%clk 0:02:10.5]}
7. c3 {[%clk 0:02:47.8]} 7... c5 {[%clk 0:02:06.9]} 8. Ne5 {[%clk 0:02:43.5]}
8... Nxe5 {[%clk 0:02:01.1]} 9. dxe5 {[%clk 0:02:43.2]} 9... Nd7 {[%clk
0:02:01.2]} 10. Bf4 {[%clk 0:02:29.8]} 10... Rb8 {[%clk 0:01:36]} 11. Qh5 {[%clk
0:02:17.4]} 11... g6 {[%clk 0:01:25.5]} 12. Qg4 {[%clk 0:02:09.5]} 12... b5
{[%clk 0:01:21.8]} 13. h4 {[%clk 0:02:08.8]} 13... d4 {[%clk 0:01:03.8]} 14.
cxd4 {[%clk 0:01:48.6]} 14... cxd4 {[%clk 0:01:04.7]} 15. exd4 {[%clk
0:01:07.8]} 15... Nb6 {[%clk 0:00:49.6]} 16. Nf3 {[%clk 0:01:00.2]} 16... Bb7
{[%clk 0:00:27.3]} 17. Bh6 {[%clk 0:00:53.7]} 17... Bxf3 {[%clk 0:00:25.9]} 18.
gxf3 {[%clk 0:00:53.8]} 18... f5 {[%clk 0:00:20.6]} 19. exf6 {[%clk 0:00:50.4]}
19... Rxf6 {[%clk 0:00:20.4]} 20. h5 {[%clk 0:00:49.2]} 20... Qe8 {[%clk
0:00:07.4]} 21. hxg6 {[%clk 0:00:46.8]} 21... Rxg6 {[%clk 0:00:08.3]} 22. Bxg6
{[%clk 0:00:45.1]} 22... Qxg6 {[%clk 0:00:09.2]} 23. Qh3 {[%clk 0:00:32.1]}
23... Bb4+ {[%clk 0:00:05.2]} 24. Kf1 {[%clk 0:00:31.6]} 24... Qd3+ {[%clk
0:00:04.4]} 25. Kg2 {[%clk 0:00:31.8]} 25... Kh8 {[%clk 0:00:03.6]} 26. Bf4
{[%clk 0:00:22.4]} 1-0

[Event "Late-Titled-Tuesday-Blitz-September-19-2023"]
[Site "Chess.com"]
[Date "2023.09.19"]
[Round "2"]
[White "ameetghasi100"]
[Black "Mike24147"]
[Result "1-0"]
[WhiteElo "2695"]
[BlackElo "2369"]
[TimeControl "180+1"]
[EndTime "14:16:36 PDT"]
[Termination "ameetghasi100 won on time"]

1. d4 {[%clk 0:02:58.7]} 1... d5 {[%clk 0:02:59.4]} 2. Nf3 {[%clk 0:02:58.3]}
2... Nf6 {[%clk 0:02:59.5]} 3. Bg5 {[%clk 0:02:58.4]} 3... Bf5 {[%clk 0:02:58]}
4. Nbd2 {[%clk 0:02:55.3]} 4... Nbd7 {[%clk 0:02:57.4]} 5. e3 {[%clk 0:02:55.6]}
5... e6 {[%clk 0:02:57.7]} 6. Nh4 {[%clk 0:02:50.9]} 6... Bg6 {[%clk 0:02:54.6]}
7. Be2 {[%clk 0:02:47.1]} 7... Be7 {[%clk 0:02:53.6]} 8. O-O {[%clk 0:02:45.2]}
8... O-O {[%clk 0:02:51.5]} 9. c4 {[%clk 0:02:43.8]} 9... c5 {[%clk 0:02:42]}
10. Nxg6 {[%clk 0:02:23.7]} 10... hxg6 {[%clk 0:02:39.2]} 11. dxc5 {[%clk
0:02:15]} 11... Nxc5 {[%clk 0:02:32.8]} 12. Bf3 {[%clk 0:02:14.7]} 12... Nfe4
{[%clk 0:02:08.8]} 13. Bxe7 {[%clk 0:02:13.4]} 13... Qxe7 {[%clk 0:02:09.4]} 14.
cxd5 {[%clk 0:02:14]} 14... exd5 {[%clk 0:02:04.8]} 15. Qe2 {[%clk 0:01:58.2]}
15... Qe5 {[%clk 0:01:56.8]} 16. Rab1 {[%clk 0:01:49.6]} 16... Rfd8 {[%clk
0:01:49]} 17. Rfd1 {[%clk 0:01:49.1]} 17... Rac8 {[%clk 0:01:36.1]} 18. h3
{[%clk 0:01:38.8]} 18... a6 {[%clk 0:01:21.7]} 19. h4 {[%clk 0:01:33.9]} 19...
Na4 {[%clk 0:01:17.4]} 20. Nb3 {[%clk 0:01:30.2]} 20... b5 {[%clk 0:01:05.9]}
21. Nd4 {[%clk 0:01:23.3]} 21... Rc7 {[%clk 0:00:48.6]} 22. Qe1 {[%clk
0:01:16.5]} 22... Rdc8 {[%clk 0:00:44.3]} 23. Qa5 {[%clk 0:01:12.6]} 23... Qf6
{[%clk 0:00:41.9]} 24. g3 {[%clk 0:01:03.7]} 24... Nb6 {[%clk 0:00:24.6]} 25.
Qxa6 {[%clk 0:00:55.8]} 25... Ra8 {[%clk 0:00:18.4]} 26. Qxb5 {[%clk 0:00:54.4]}
26... Rxa2 {[%clk 0:00:16.6]} 27. Bxe4 {[%clk 0:00:43.9]} 27... dxe4 {[%clk
0:00:15.9]} 28. Qe8+ {[%clk 0:00:44]} 28... Kh7 {[%clk 0:00:15.7]} 29. Qxe4
{[%clk 0:00:44.9]} 29... Nc4 {[%clk 0:00:07.7]} 30. Nf3 {[%clk 0:00:41.7]} 30...
Re7 {[%clk 0:00:02.3]} 31. Qxc4 {[%clk 0:00:31.4]} 1-0

[Event "Late-Titled-Tuesday-Blitz-September-19-2023"]
[Site "Chess.com"]
[Date "2023.09.19"]
[Round "2"]
[White "talaicito"]
[Black "Young_Catalan_Player09"]
[Result "1-0"]
[WhiteElo "2167"]
[BlackElo "2421"]
[TimeControl "180+1"]
[EndTime "14:16:38 PDT"]
[Termination "talaicito won on time"]

1. d4 {[%clk 0:03:00.9]} 1... f5 {[%clk 0:02:56]} 2. Bg5 {[%clk 0:02:54]} 2...
h6 {[%clk 0:02:54.3]} 3. Bd2 {[%clk 0:02:49.8]} 3... Nf6 {[%clk 0:02:52.8]} 4.
g3 {[%clk 0:02:45.2]} 4... g6 {[%clk 0:02:49.1]} 5. Bg2 {[%clk 0:02:45]} 5...
Bg7 {[%clk 0:02:42.2]} 6. c4 {[%clk 0:02:45.5]} 6... d6 {[%clk 0:02:42.2]} 7.
Nc3 {[%clk 0:02:45.2]} 7... c6 {[%clk 0:02:42.1]} 8. e4 {[%clk 0:02:39.6]} 8...
fxe4 {[%clk 0:02:40.4]} 9. Nxe4 {[%clk 0:02:39.8]} 9... O-O {[%clk 0:02:41.3]}
10. Bc3 {[%clk 0:02:33.4]} 10... Nbd7 {[%clk 0:02:35.1]} 11. Ne2 {[%clk
0:02:31.7]} 11... Nxe4 {[%clk 0:02:34.6]} 12. Bxe4 {[%clk 0:02:30.3]} 12... g5
{[%clk 0:02:28.2]} 13. O-O {[%clk 0:02:27.9]} 13... Nf6 {[%clk 0:02:27.2]} 14.
Bg2 {[%clk 0:02:28.4]} 14... Be6 {[%clk 0:02:27.4]} 15. Qd3 {[%clk 0:02:22.4]}
15... Nd7 {[%clk 0:02:23.5]} 16. f4 {[%clk 0:02:17]} 16... Bf5 {[%clk
0:01:55.4]} 17. Be4 {[%clk 0:02:16.1]} 17... Bxe4 {[%clk 0:01:55.1]} 18. Qxe4
{[%clk 0:02:16]} 18... g4 {[%clk 0:01:55.1]} 19. Qe6+ {[%clk 0:02:14.8]} 19...
Kh8 {[%clk 0:01:51.8]} 20. Qxg4 {[%clk 0:02:08.4]} 20... Nf6 {[%clk 0:01:52.7]}
21. Qg6 {[%clk 0:02:00.2]} 21... Qd7 {[%clk 0:01:45.5]} 22. Rfe1 {[%clk
0:01:43.7]} 22... Qh3 {[%clk 0:01:42.6]} 23. d5 {[%clk 0:01:30.6]} 23... Rg8
{[%clk 0:01:30.7]} 24. Nd4 {[%clk 0:01:13.8]} 24... Ng4 {[%clk 0:01:28.6]} 25.
Qc2 {[%clk 0:01:11.4]} 25... cxd5 {[%clk 0:00:55.7]} 26. cxd5 {[%clk 0:01:11.3]}
26... Rac8 {[%clk 0:00:54.8]} 27. Qg2 {[%clk 0:01:11.3]} 27... Qxg2+ {[%clk
0:00:49.7]} 28. Kxg2 {[%clk 0:01:10.2]} 28... Rge8 {[%clk 0:00:47.3]} 29. h3
{[%clk 0:00:55.3]} 29... Bxd4 {[%clk 0:00:47]} 30. Bxd4+ {[%clk 0:00:54.8]}
30... Nf6 {[%clk 0:00:47.2]} 31. Rxe7 {[%clk 0:00:49.9]} 31... Rc2+ {[%clk
0:00:43.8]} 32. Kf3 {[%clk 0:00:48.9]} 32... Rxe7 {[%clk 0:00:44.1]} 33. Bxf6+
{[%clk 0:00:48.5]} 33... Rg7 {[%clk 0:00:45]} 34. Re1 {[%clk 0:00:46.4]} 34...
Kh7 {[%clk 0:00:44.3]} 35. Bxg7 {[%clk 0:00:46.4]} 35... Kxg7 {[%clk 0:00:45.2]}
36. Re7+ {[%clk 0:00:46.4]} 36... Kg6 {[%clk 0:00:29.7]} 37. Rxb7 {[%clk
0:00:46.4]} 1-0